bitfinex/quotes_SOLUSD_20250616
["timestamp","ask_amount","ask_price","bid_price","bid_amount"]
[1750083772852,4.74768662,156.77,156.73,22.33133219]
[1750083773051,4.74768662,156.76,156.73,35.15215657]
[1750083773251,4.74768662,156.75,156.73,6.38033366]
[1750083773483,12.82082438,156.76,156.73,6.38033366]
[1750083773652,4.74809634,156.75,156.73,6.38033366]
[1750083773858,12.82082438,156.77,156.73,6.38033366]
[1750083774072,17.56894595,156.76,156.73,6.38033366]
[1750083774258,4.74812157,156.75,156.73,6.38033366]
[1750083774586,12.82082438,156.77,156.73,6.38033366]
[1750083774895,4.74815431,156.76,156.73,6.38033366]
[1750083775190,4.74176603,156.75,156.73,6.38033366]
[1750083775389,12.82082438,156.75,156.73,6.38033366]
[1750083775548,17.5627982,156.74,156.72,12.44074346]
[1750083775754,4.74197382,156.73,156.72,12.44074346]
[1750083776390,4.74221258,156.73,156.72,12.44074346]
[1750083777561,17.56303696,156.73,156.72,6.06]
[1750083777785,12.82082438,156.73,156.72,6.06]
[1750083777958,4.73385927,156.73,156.72,12.44080653]
[1750083778162,17.83900679,156.73,156.67,6.38284291]
[1750083778484,12.82082438,156.71,156.67,6.38284291]
[1750083779193,4.73456522,156.7,156.67,19.20366729]
[1750083779497,4.73456522,156.72,156.69,6.3820282]
[1750083780007,12.82082438,156.72,156.69,6.3820282]
[1750083780604,12.82082438,156.72,156.68,6.38243553]
[1750083781194,17.5553896,156.73,156.68,19.20325991]
[1750083781619,12.82082438,156.72,156.68,19.20325991]
[1750083781796,12.82082438,156.72,156.68,35.15934875]
[1750083781978,12.82082438,156.73,156.69,12.82082438]
[1750083782174,12.82082438,156.71,156.68,6.38243553]
[1750083782412,12.82082438,156.71,156.63,27.5086]
[1750083782413,12.82082438,156.69,156.6,6.38569604]
[1750083782584,32.38333424,156.66,156.6,6.38569604]
[1750083782774,12.82082438,156.62,156.58,6.38610885]
[1750083782983,12.82082438,156.61,156.58,6.38610885]
[1750083783289,12.82082438,156.6,156.58,6.38610885]
[1750083783601,12.82082438,156.61,156.58,6.38610885]
[1750083784184,12.82082438,156.6,156.57,12.46679507]
[1750083784801,12.82082438,156.61,156.57,25.28761945]
[1750083785001,38.82082438,156.62,156.57,25.28761945]
[1750083785191,12.82082438,156.61,156.57,25.28761945]
[1750083785397,26.0,156.62,156.57,41.25491842]
[1750083785605,38.82082438,156.62,156.57,41.25491842]
[1750083786407,13.10514752,156.64,156.59,12.82082438]
[1750083786591,26.86,156.69,156.61,22.34850902]
[1750083786794,12.82082438,156.65,156.61,22.34850902]
[1750083787009,12.82082438,156.65,156.61,35.1693334]
[1750083787220,12.82082438,156.64,156.61,6.38528829]
[1750083787513,12.82082438,156.64,156.55,44.64964886]
[1750083787514,12.82082438,156.62,156.59,6.38610383]
[1750083787718,0.14216157,156.61,156.59,6.38610383]
[1750083787886,13.10514752,156.6,156.59,6.38610383]
[1750083788488,0.28432314,156.6,156.59,6.38610383]
[1750083788708,0.28432314,156.61,156.57,35.1746975]
[1750083789017,0.28432314,156.63,156.58,12.82082438]
[1750083789195,12.82082438,156.62,156.57,35.1746975]
[1750083789816,12.82082438,156.6,156.57,6.38691958]
[1750083789996,0.28432314,156.63,156.58,12.82082438]
[1750083790323,0.28432314,156.61,156.58,12.82082438]
[1750083790619,0.28432314,156.61,156.59,6.38610383]
[1750083791820,52.88,156.64,156.59,6.38610383]
[1750083791988,0.28432314,156.63,156.59,6.38610383]
[1750083792189,12.82082438,156.62,156.59,6.38610383]
[1750083792693,12.82082438,156.61,156.58,6.38651168]
[1750083794744,12.82082438,156.61,156.57,6.38691958]
[1750083794911,26.0,156.62,156.57,35.17504293]
[1750083795102,26.0,156.62,156.58,12.82082438]
[1750083795303,38.82082438,156.62,156.58,12.82082438]
[1750083795533,12.82082438,156.63,156.58,12.82082438]
[1750083795713,12.82082438,156.63,156.57,22.35421855]
[1750083795912,12.82082438,156.63,156.58,12.82082438]
[1750083796523,12.82082438,156.63,156.57,22.35421855]
[1750083796735,12.82082438,156.6,156.57,15.96729897]
[1750083796915,12.82082438,156.6,156.56,19.20815192]
[1750083797425,12.82082438,156.61,156.56,35.17647077]
[1750083797823,0.28432314,156.61,156.57,12.82082438]
[1750083798741,4.68661364,156.64,156.56,22.35564639]
[1750083798742,12.82082438,156.6,156.56,35.17647077]
[1750083799031,8.56934554,156.6,156.56,30.92499193]
[1750083799209,0.28432314,156.62,156.56,22.35564639]
[1750083799411,8.56934554,156.59,156.56,22.35564639]
[1750083799805,8.56934554,156.61,156.56,30.92499193]
[1750083800010,8.56934554,156.61,156.57,8.56934554]
[1750083800228,8.56934554,156.61,156.56,30.92499193]
[1750083800441,145.6,156.69,156.6,8.56934554]
[1750083800657,8.56934554,156.67,156.63,8.56934554]
[1750083800809,8.56934554,156.67,156.64,6.38406537]
[1750083801012,8.56934554,156.66,156.64,6.38406537]
[1750083801952,13.25502785,156.68,156.64,14.95341091]
[1750083802122,4.68568231,156.69,156.64,6.38406537]
[1750083802334,8.56934554,156.68,156.64,6.38406537]
[1750083802835,12.98404637,156.68,156.63,12.8418848]
[1750083803418,0.28432314,156.68,156.62,12.8418848]
[1750083803643,12.8418848,156.67,156.62,12.8418848]
[1750083803817,13.12620794,156.68,156.63,12.8418848]
[1750083804022,12.8418848,156.67,156.63,12.8418848]
[1750083804249,12.8418848,156.67,156.6,54.27841634]
[1750083804250,12.8418848,156.64,156.6,6.38569604]
[1750083804420,12.8418848,156.65,156.61,12.8418848]
[1750083804610,4.97732958,156.66,156.62,12.8418848]
[1750083804825,0.28432314,156.66,156.63,6.38447296]
[1750083805217,18.2473391,156.7,156.64,12.8418848]
[1750083805218,13.12620794,156.69,156.64,12.8418848]
[1750083805438,4.98024392,156.68,156.64,12.8418848]
[1750083805786,4.69592078,156.67,156.64,12.8418848]
[1750083805917,0.28432314,156.68,156.64,12.8418848]
[1750083806118,4.98748789,156.68,156.64,12.8418848]
[1750083806317,4.98748789,156.68,156.65,12.8418848]
[1750083806513,4.70316475,156.67,156.65,12.8418848]
[1750083806741,4.70316475,156.69,156.66,12.8418848]
[1750083806919,10.38566224,156.7,156.63,54.26802016]
[1750083806920,4.70316475,156.68,156.67,12.8418848]
[1750083807125,14.80450385,156.7,156.67,12.8418848]
[1750083807437,10.1013391,156.7,156.69,12.8418848]
[1750083807627,12.8418848,156.75,156.69,12.8418848]
[1750083807815,4.70408794,156.74,156.7,12.8418848]
[1750083808015,4.70408794,156.74,156.71,12.8418848]
[1750083808222,4.70408794,156.75,156.71,12.8418848]
[1750083808419,4.70408794,156.74,156.71,12.8418848]
[1750083808616,4.70408794,156.73,156.71,12.8418848]
[1750083808818,38.8418848,156.76,156.72,6.38080653]
[1750083809036,4.7138912,156.75,156.72,6.38080653]
[1750083809242,4.7138912,156.74,156.72,6.38080653]
[1750083809447,12.8418848,156.75,156.72,6.38080653]
[1750083809649,4.71384338,156.74,156.72,6.38080653]
[1750083809952,4.71386269,156.73,156.72,6.38080653]
[1750083810160,12.8418848,156.75,156.72,6.38080653]
[1750083810161,4.71386269,156.74,156.72,6.38080653]
[1750083810351,4.71510863,156.73,156.72,6.38080653]
[1750083811137,4.71510863,156.73,156.72,19.22269133]
[1750083811341,4.71510863,156.73,156.72,6.38080653]
[1750083811723,4.71510863,156.73,156.72,19.22269133]
[1750083812339,0.14216157,156.77,156.72,35.17470766]
[1750083812539,26.0,156.79,156.75,19.22147012]
[1750083812540,4.72392145,156.76,156.75,19.22147012]
[1750083813051,4.72392145,156.76,156.75,6.37958532]
[1750083813354,4.72392145,156.76,156.75,19.22147012]
[1750083813528,4.72392145,156.76,156.75,6.37958532]
[1750083814324,26.0,156.78,156.75,6.37958532]
[1750083814640,4.72876775,156.77,156.75,6.37958532]
[1750083814844,4.72876775,156.76,156.75,6.37958532]
[1750083816328,4.72876775,156.76,156.73,12.8418848]
[1750083816542,4.72876775,156.75,156.74,6.37999234]
[1750083816720,4.72876775,156.75,156.73,12.8418848]
[1750083816721,17.57065255,156.75,156.71,6.3812137]
[1750083816933,6.37862539,156.78,156.71,6.3812137]
[1750083816934,17.57065255,156.74,156.71,6.3812137]
[1750083817243,4.72876775,156.73,156.72,18.64964886]
[1750083817446,12.8418848,156.79,156.72,31.49153366]
[1750083817647,13.12620794,156.77,156.71,22.33424796]
[1750083817944,4.72800219,156.76,156.72,12.8418848]
[1750083818135,4.72800219,156.75,156.72,12.8418848]
[1750083818336,4.72785369,156.74,156.72,12.8418848]
[1750083818528,0.28432314,156.77,156.74,6.37999234]
[1750083818733,4.7272279,156.76,156.74,6.37999234]
[1750083818929,4.7272279,156.75,156.74,6.37999234]
[1750083819442,4.7272279,156.75,156.74,19.22187714]
[1750083819820,12.8418848,156.78,156.74,6.37999234]
[1750083820023,4.72867423,156.77,156.74,6.37999234]
[1750083820250,4.72867423,156.76,156.74,6.37999234]
[1750083820543,12.8418848,156.78,156.74,6.37999234]
[1750083820736,17.8548811,156.77,156.74,6.37999234]
[1750083820935,4.72867316,156.76,156.74,6.37999234]
[1750083821135,13.12620794,156.77,156.74,6.37999234]
[1750083821337,4.72863639,156.76,156.74,6.37999234]
[1750083821530,13.12620794,156.77,156.74,6.37999234]
[1750083821731,4.72870967,156.76,156.73,6.38039941]
[1750083821929,4.72870967,156.75,156.73,6.38039941]
[1750083822131,4.72870967,156.76,156.73,6.38039941]
[1750083822747,4.72740958,156.76,156.73,6.38039941]
[1750083822949,4.72740958,156.76,156.73,30.88237229]
[1750083823157,4.72740958,156.78,156.74,8.55097435]
[1750083823330,4.72740958,156.77,156.74,8.55097435]
[1750083823531,4.72740958,156.76,156.73,30.88237229]
[1750083823740,13.27838393,156.78,156.73,30.88237229]
[1750083824337,4.72740958,156.77,156.73,30.88237229]
[1750083824656,13.27838393,156.78,156.73,30.88237229]
[1750083826554,13.27838393,156.78,156.74,8.55097435]
[1750083826859,8.55097435,156.78,156.74,8.55097435]
[1750083827359,8.55097435,156.77,156.73,30.88237229]
[1750083827737,13.27476056,156.78,156.74,8.55097435]
[1750083827959,13.27476056,156.78,156.75,6.37958532]
[1750083828767,4.72378621,156.78,156.75,6.37958532]
[1750083828941,13.27476056,156.78,156.75,6.37958532]
[1750083829340,8.55097435,156.77,156.75,6.37958532]
[1750083830060,13.27476056,156.78,156.74,6.37999234]
[1750083831140,13.27558421,156.78,156.74,6.37999234]
[1750083831654,4.72460986,156.78,156.74,6.37999234]
[1750083831966,4.72460986,156.78,156.74,14.93096669]
[1750083832452,13.27558421,156.78,156.74,14.93096669]
[1750083832632,8.55097435,156.78,156.74,14.93096669]
[1750083832837,26.28432314,156.79,156.74,30.88094755]
[1750083833031,26.0,156.8,156.76,8.55097435]
[1750083833236,8.55097435,156.81,156.74,22.3299732]
[1750083833465,8.55097435,156.79,156.74,22.3299732]
[1750083833651,8.55097435,156.78,156.74,30.88094755]
[1750083834059,8.55097435,156.79,156.74,30.88094755]
[1750083834257,8.55097435,156.79,156.75,8.55097435]
[1750083834553,0.28432314,156.79,156.75,8.55097435]
[1750083834753,8.83529749,156.79,156.75,8.55097435]
[1750083835064,0.28432314,156.79,156.75,8.55097435]
[1750083835241,0.28432314,156.79,156.76,8.55097435]
[1750083835561,39.275382,156.81,156.77,6.37877144]
[1750083835765,34.55097435,156.81,156.77,6.37877144]
[1750083836683,8.83529749,156.79,156.74,6.37999234]
[1750083836846,8.55097435,156.77,156.74,6.37999234]
[1750083837659,4.72555025,156.8,156.76,8.55097435]
[1750083837851,6.2349,156.84,156.78,8.55097435]
[1750083838163,30.72760013,156.83,156.8,8.55097435]
[1750083838338,4.72726862,156.82,156.79,8.55097435]
[1750083838544,13.27824297,156.83,156.78,8.55097435]
[1750083838743,8.55097435,156.83,156.78,8.55097435]
[1750083838964,39.27824297,156.83,156.78,8.55097435]
[1750083839268,34.55097435,156.83,156.78,8.55097435]
[1750083839669,34.55097435,156.83,156.8,6.37755102]
[1750083839670,4.73173529,156.82,156.8,6.37755102]
[1750083840552,26.0,156.83,156.8,30.87240292]
[1750083840760,4.72979426,156.82,156.8,30.87240292]
[1750083840963,0.28432314,156.84,156.8,30.87240292]
[1750083840964,4.72979426,156.83,156.8,30.87240292]
[1750083841162,4.72979426,156.83,156.82,8.55097435]
[1750083841348,4.72979426,156.87,156.82,8.55097435]
[1750083841546,4.72979426,156.86,156.84,8.55097435]
[1750083841763,4.72979426,156.85,156.84,14.92689885]
[1750083842371,4.73401586,156.87,156.84,30.86671012]
[1750083842572,4.73326868,156.91,156.86,8.55097435]
[1750083842751,4.73326868,156.9,156.88,8.55097435]
[1750083842941,4.73326868,156.89,156.85,18.64964886]
[1750083843145,10.17828543,156.92,156.88,8.55097435]
[1750083843146,4.73326868,156.91,156.88,8.55097435]
[1750083843370,10.17828543,156.92,156.9,8.55097435]
[1750083843564,10.17828543,156.92,156.91,8.55097435]
[1750083843766,14.91115363,156.92,156.91,14.92405445]
[1750083844347,4.7328682,156.92,156.91,14.92405445]
[1750083844658,10.11907435,156.98,156.91,14.92405445]
[1750083844866,26.0,156.96,156.94,8.55097435]
[1750083845052,4.73196036,156.95,156.94,8.55097435]
[1750083845653,4.73196036,156.95,156.93,8.55097435]
[1750083845870,26.0,156.97,156.94,14.9228362]
[1750083846170,4.72242724,156.96,156.94,14.9228362]
[1750083846368,4.72242724,156.95,156.93,14.92312035]
[1750083846571,34.55097435,156.97,156.93,14.92312035]
[1750083846779,4.72269626,156.96,156.89,6.37389253]
[1750083846966,4.72269626,156.95,156.91,8.55097435]
[1750083847282,4.72269626,156.94,156.89,22.30862387]
[1750083847584,4.72254428,156.97,156.93,8.55097435]
[1750083847753,4.72254428,156.97,156.9,18.64964886]
[1750083847754,4.72254428,156.96,156.95,6.37145587]
[1750083847954,26.0,156.99,156.95,6.37145587]
[1750083847955,4.72254428,156.98,156.95,8.55097435]
[1750083848272,34.83529749,156.96,156.88,15.93498936]
[1750083848578,8.55097435,156.89,156.86,6.37511156]
[1750083849379,8.55097435,156.9,156.86,6.37511156]
[1750083849567,4.71635326,156.89,156.86,6.37511156]
[1750083849774,8.55097435,156.9,156.86,6.37511156]
[1750083849977,4.71620731,156.89,156.86,6.37511156]
[1750083850278,13.26554591,156.89,156.86,6.37511156]
[1750083850468,8.55097435,156.89,156.86,6.37511156]
[1750083850676,13.26554591,156.9,156.86,6.37511156]
[1750083850863,4.71457156,156.89,156.86,6.37511156]
[1750083851572,8.55097435,156.9,156.86,6.37511156]
[1750083851781,13.26903081,156.89,156.86,6.37511156]
[1750083851964,8.55097435,156.89,156.86,6.37511156]
[1750083853061,13.26903553,156.89,156.86,6.37511156]
[1750083853381,13.26903553,156.89,156.81,33.57776752]
[1750083853382,8.55097435,156.87,156.81,33.57776752]
[1750083853556,32.37404459,156.89,156.81,33.57776752]
[1750083853557,13.26903553,156.86,156.81,33.57776752]
[1750083853884,8.55097435,156.87,156.82,8.55097435]
[1750083854073,4.71788552,156.86,156.82,8.55097435]
[1750083854252,8.55097435,156.86,156.83,6.37633105]
[1750083854454,4.71819347,156.85,156.83,6.37633105]
[1750083854651,13.26916782,156.87,156.83,6.37633105]
[1750083854851,13.26916782,156.86,156.83,6.37633105]
[1750083855082,8.55097435,156.86,156.83,6.37633105]
[1750083855283,13.26916782,156.86,156.83,6.37633105]
[1750083855473,8.55097435,156.86,156.83,6.37633105]
[1750083855680,8.55097435,156.85,156.82,6.37665374]
[1750083855881,13.26916782,156.85,156.82,6.37665374]
[1750083856182,8.55097435,156.85,156.82,6.37665374]
[1750083856691,13.27028895,156.85,156.79,25.02760663]
[1750083856864,13.27028895,156.84,156.79,14.92893212]
[1750083857055,8.55097435,156.85,156.8,8.55097435]
[1750083857684,8.55097435,156.85,156.79,22.32285221]
[1750083857685,13.27028895,156.84,156.79,14.92893212]
[1750083858078,8.55097435,156.83,156.79,14.92893212]
[1750083858377,8.55097435,156.83,156.79,6.37795777]
[1750083858583,8.55097435,156.82,156.79,6.37795777]
[1750083858793,8.55097435,156.81,156.79,6.37795777]
[1750083859002,5.00363774,156.82,156.79,6.37795777]
[1750083859163,8.83529749,156.82,156.79,6.37795777]
[1750083860184,4.72285774,156.84,156.79,6.37795777]
[1750083860364,13.27383209,156.84,156.79,6.37795777]
[1750083860570,13.27383209,156.84,156.79,30.87382656]
[1750083860779,8.55097435,156.83,156.79,30.87382656]
[1750083861081,4.72285774,156.84,156.8,8.55097435]
[1750083861082,8.55097435,156.84,156.8,8.55097435]
[1750083861295,8.83529749,156.84,156.79,30.87382656]
[1750083861592,8.83529749,156.84,156.79,22.32285221]
[1750083861781,4.72285774,156.86,156.79,22.32285221]
[1750083861782,13.27383209,156.86,156.81,8.55097435]
[1750083861960,8.55097435,156.85,156.81,8.55097435]
[1750083862365,8.55097435,156.85,156.82,6.37673766]
[1750083863178,13.27383209,156.85,156.82,6.37673766]
[1750083863388,8.55097435,156.84,156.82,6.37673766]
[1750083863764,8.55097435,156.84,156.8,6.37755102]
[1750083864372,8.55097435,156.83,156.79,14.92893212]
[1750083864572,8.83529749,156.84,156.8,8.55097435]
[1750083865086,8.83529749,156.84,156.79,6.37795777]
[1750083865259,8.55097435,156.83,156.79,14.92893212]
[1750083866183,8.55097435,156.83,156.79,6.37795777]
[1750083866491,8.83529749,156.84,156.79,14.92893212]
[1750083867284,8.55097435,156.83,156.79,6.37795777]
[1750083867456,8.55097435,156.83,156.79,14.92893212]
[1750083867859,8.83529749,156.84,156.79,14.92893212]
[1750083868093,13.2776587,156.85,156.8,8.55097435]
[1750083868272,13.2776587,156.85,156.81,6.37714431]
[1750083868599,4.72668435,156.85,156.82,8.55097435]
[1750083868881,13.2776587,156.85,156.81,6.37714431]
[1750083869080,8.55097435,156.84,156.81,6.37714431]
[1750083869673,8.55097435,156.83,156.8,6.3774022]
[1750083869998,35.41150435,156.88,156.83,18.64964886]
[1750083869999,19.15403,156.88,156.83,18.64964886]
[1750083870298,0.28432314,156.9,156.87,8.55097435]
[1750083870492,4.72923523,156.9,156.88,14.92527317]
[1750083870699,4.72923523,156.92,156.88,14.92527317]
[1750083870898,4.72923523,156.91,156.88,14.92527317]
[1750083871191,4.72923523,156.92,156.88,6.37429882]
[1750083871400,4.72923523,156.91,156.88,14.92527317]
[1750083872188,4.72923523,156.92,156.9,8.55097435]
[1750083872495,30.72923523,156.95,156.91,14.92405445]
[1750083872700,8.55097435,156.93,156.89,6.37389253]
[1750083872991,17.52854079,156.93,156.89,6.37389253]
[1750083873305,12.80103405,156.93,156.88,19.17519496]
[1750083873483,12.80103405,156.91,156.88,6.37416091]
[1750083873689,0.28432314,156.9,156.87,12.4145363]
[1750083874073,5.01182988,156.9,156.87,12.4145363]
[1750083874276,0.28432314,156.9,156.87,25.21557035]
[1750083874684,17.81286393,156.9,156.87,6.04]
[1750083874890,13.08535719,156.9,156.87,12.41455701]
[1750083875294,17.81564916,156.9,156.87,12.41455701]
[1750083875502,4.73029197,156.89,156.87,12.41455701]
[1750083875709,4.73273196,156.89,156.87,6.04]
[1750083875990,4.73273196,156.89,156.83,6.3771]
[1750083875991,5.0170551,156.88,156.82,19.17777171]
[1750083876181,17.53376601,156.87,156.82,19.17777171]
[1750083876381,4.73273196,156.87,156.84,6.3759245]
[1750083876602,17.53376601,156.88,156.84,6.3759245]
[1750083876902,26.0,156.89,156.85,12.80103405]
[1750083877077,13.08535719,156.9,156.84,22.31573577]
[1750083877394,17.53521099,156.89,156.84,35.11676982]
[1750083877601,4.73417694,156.88,156.84,35.11676982]
[1750083878574,4.73653475,156.88,156.84,35.11676982]
[1750083879089,17.5375688,156.89,156.85,12.80103405]
[1750083879281,12.80103405,156.89,156.85,12.80103405]
[1750083879608,4.73729795,156.89,156.86,12.80103405]
[1750083879977,4.73729795,156.9,156.86,12.80103405]
[1750083880194,4.73729795,156.89,156.86,12.80103405]
[1750083880373,38.80103405,156.91,156.83,18.64964886]
[1750083880374,4.73729795,156.9,156.87,12.80103405]
[1750083881092,4.73729795,156.9,156.88,6.37429882]
[1750083881391,4.73729795,156.91,156.88,6.37429882]
[1750083881588,4.73729795,156.9,156.88,6.37429882]
[1750083881788,4.73729795,156.91,156.88,6.37429882]
[1750083881990,4.73729795,156.9,156.88,6.37429882]
[1750083882183,4.73729795,156.91,156.88,6.37429882]
[1750083882392,4.73729795,156.9,156.88,6.37429882]
[1750083882591,4.73729795,156.91,156.88,6.37429882]
[1750083882796,4.73729795,156.9,156.88,6.37429882]
[1750083882978,4.73729795,156.89,156.86,6.37511156]
[1750083883178,4.74376436,156.88,156.84,6.3759245]
[1750083883380,0.28432314,156.89,156.84,6.3759245]
[1750083883381,12.80103405,156.86,156.84,6.3759245]
[1750083883580,12.80103405,156.87,156.84,6.3759245]
[1750083883910,17.5454344,156.86,156.84,6.3759245]
[1750083884213,4.74440035,156.85,156.84,6.3759245]
[1750083885182,4.74440035,156.85,156.83,6.37633105]
[1750083885382,12.80103405,156.87,156.83,6.37633105]
[1750083885596,4.74628275,156.86,156.83,6.37633105]
[1750083885806,4.74628275,156.85,156.83,6.37633105]
[1750083885985,4.74619386,156.86,156.83,19.1773651]
[1750083886303,12.80103405,156.87,156.83,19.1773651]
[1750083886505,4.74693222,156.86,156.84,12.80103405]
[1750083886811,4.74693222,156.85,156.83,6.37633105]
[1750083886994,12.80103405,156.86,156.83,6.37633105]
[1750083887307,4.74715484,156.85,156.82,19.17777171]
[1750083887502,12.80103405,156.86,156.82,19.17777171]
[1750083887707,4.74719952,156.85,156.82,19.17777171]
[1750083887893,12.80103405,156.86,156.82,19.17777171]
[1750083888214,4.74619271,156.85,156.82,19.17777171]
[1750083888511,12.80103405,156.86,156.82,6.37673766]
[1750083888709,12.80103405,156.84,156.8,12.41738219]
[1750083888892,17.54722783,156.83,156.8,12.41738219]
[1750083889212,26.0,156.84,156.8,25.21841624]
[1750083889380,4.74686463,156.83,156.8,25.21841624]
[1750083889720,13.08535719,156.84,156.8,12.41738219]
[1750083889930,13.08535719,156.84,156.8,6.04]
[1750083889931,12.80103405,156.81,156.8,6.04]
[1750083890407,17.5479858,156.81,156.8,6.04]
[1750083890594,12.80103405,156.81,156.8,6.04]
[1750083890914,4.74695175,156.81,156.8,12.41755102]
[1750083891088,4.74695175,156.81,156.8,6.04]
[1750083891415,17.5479858,156.81,156.8,6.04]
[1750083891799,4.74695175,156.81,156.8,6.04]
[1750083892185,17.5479858,156.81,156.76,6.37917836]
[1750083892388,12.80103405,156.79,156.76,6.37917836]
[1750083892591,0.28432314,156.82,156.76,6.37917836]
[1750083892804,0.28432314,156.8,156.75,12.80103405]
[1750083893004,12.80103405,156.78,156.73,26.84131115]
[1750083893306,0.28432314,156.8,156.73,6.04]
[1750083893307,12.80103405,156.76,156.73,6.04]
[1750083893485,4.75714227,156.75,156.73,6.04]
[1750083893682,12.80103405,156.76,156.73,6.04]
[1750083893885,17.55273849,156.75,156.73,6.04]
[1750083894110,12.80103405,156.75,156.73,6.04]
[1750083894412,12.80103405,156.75,156.73,12.42036298]
[1750083894711,13.08535719,156.76,156.73,12.42036298]
[1750083895021,4.75193503,156.75,156.73,12.42036298]
[1750083895213,8.55247638,156.79,156.74,8.55247638]
[1750083895421,4.75098011,156.78,156.75,8.55247638]
[1750083895589,4.75062836,156.8,156.73,28.37136151]
[1750083895791,4.75062836,156.79,156.77,8.55247638]
[1750083896011,4.74939737,156.8,156.78,8.55247638]
[1750083896210,6.37564583,156.85,156.73,28.37136151]
[1750083896211,4.74919445,156.83,156.79,8.55247638]
[1750083896491,4.74919445,156.83,156.75,1.5619]
[1750083896492,4.74919445,156.82,156.76,44.64964886]
[1750083896712,4.74919445,156.85,156.81,8.55247638]
[1750083896892,4.74919445,156.84,156.83,12.80933353]
[1750083897403,4.74919445,156.87,156.83,12.80933353]
[1750083897613,4.74919445,156.86,156.83,12.80933353]
[1750083897819,4.74919445,156.85,156.83,12.80933353]
[1750083897998,4.74919445,156.87,156.83,12.80933353]
[1750083898314,4.74919445,156.86,156.83,12.80933353]
[1750083898520,0.28432314,156.87,156.84,12.80933353]
[1750083898719,4.74735632,156.86,156.84,12.80933353]
[1750083898901,26.0,156.88,156.85,6.37551801]
[1750083899107,4.74829301,156.87,156.85,19.18485154]
[1750083899311,4.74829301,156.86,156.85,19.18485154]
[1750083899503,26.0,156.9,156.85,19.18485154]
[1750083899819,4.74829301,156.89,156.85,19.18485154]
[1750083900012,4.74829301,156.88,156.85,19.18485154]
[1750083900212,4.74829301,156.87,156.85,19.18485154]
[1750083900417,26.0,156.9,156.86,12.80933353]
[1750083900597,4.74805493,156.89,156.87,12.80933353]
[1750083900800,4.74805493,156.88,156.87,12.80933353]
[1750083901106,4.74805493,156.88,156.87,6.37470516]
[1750083902036,4.74805493,156.88,156.87,19.18403869]
[1750083902617,4.74805493,156.9,156.87,12.80933353]
[1750083902820,4.74805493,156.89,156.88,12.80933353]
[1750083902994,4.74805493,156.91,156.88,12.80933353]
[1750083903195,4.74559304,156.9,156.88,12.80933353]
[1750083903408,26.28432314,156.92,156.88,12.80933353]
[1750083903637,4.74582069,156.91,156.88,12.80933353]
[1750083903919,26.28432314,156.92,156.88,12.80933353]
[1750083904397,39.09365667,156.92,156.88,19.18352433]
[1750083905018,64.87495553,156.96,156.9,12.80933353]
[1750083905019,38.05495553,156.96,156.9,12.80933353]
[1750083905321,38.05495553,156.96,156.89,18.64964886]
[1750083905322,18.64964886,156.9,156.82,6.37673766]
[1750083905525,39.09365667,156.87,156.82,6.37673766]
[1750083905741,0.14216157,156.86,156.82,6.37673766]
[1750083906033,12.80933353,156.84,156.82,6.37673766]
[1750083906419,12.80933353,156.84,156.79,35.13154516]
[1750083907218,0.14216157,156.86,156.8,12.80933353]
[1750083907425,4.74851362,156.89,156.84,12.80933353]
[1750083907606,38.80933353,156.88,156.8,18.64964886]
[1750083907932,38.80933353,156.88,156.83,12.80933353]
[1750083908509,38.80933353,156.88,156.85,6.37551801]
[1750083910000,12.80933353,156.86,156.8,18.64964886]
[1750083910339,12.80933353,156.82,156.8,6.37755102]
[1750083910531,13.09365667,156.81,156.78,6.04]
[1750083910709,39.09365667,156.79,156.78,6.04]
[1750083910911,0.28432314,156.78,156.72,6.38080653]
[1750083911238,38.80933353,156.76,156.72,6.38080653]
[1750083911613,38.80933353,156.76,156.72,19.19014006]
[1750083911614,26.0,156.76,156.72,19.19014006]
[1750083911813,26.0,156.77,156.73,12.80933353]
[1750083912017,38.80933353,156.77,156.72,35.14215639]
[1750083913821,12.80933353,156.75,156.72,6.38080653]
[1750083914662,12.80933353,156.75,156.71,6.3812137]
[1750083915569,12.80933353,156.75,156.71,19.19054723]
[1750083916830,12.80933353,156.74,156.71,6.3812137]
[1750083917037,13.09365667,156.75,156.71,6.3812137]
[1750083917635,12.80933353,156.73,156.71,6.3812137]
[1750083917837,26.28432314,156.75,156.71,6.3812137]
[1750083918041,26.28432314,156.75,156.7,12.42148659]
[1750083918042,4.73826824,156.74,156.7,12.42148659]
[1750083918919,0.28432314,156.73,156.7,12.42148659]
[1750083919637,12.80933353,156.72,156.7,12.42148659]
[1750083919844,0.28432314,156.73,156.7,12.42148659]
[1750083920056,13.09365667,156.73,156.7,12.42148659]
[1750083921521,12.80933353,156.72,156.7,12.42148659]
[1750083921720,0.28432314,156.73,156.67,1.645]
[1750083921721,39.09365667,156.71,156.67,6.38272374]
[1750083921923,26.0,156.7,156.67,6.38272374]
[1750083922122,12.80933353,156.68,156.64,6.38406537]
[1750083922344,12.80933353,156.67,156.64,6.38406537]
[1750083922644,5.01845918,156.69,156.64,6.38406537]
[1750083922848,12.80933353,156.67,156.64,6.38406537]
[1750083923252,12.80933353,156.65,156.63,6.04]